fUSD/lending_fUSD_20250225
["ID","MTS","AMOUNT","RATE_DAILY","PERIOD"]
[354393608,1740468812572,-777.26,0.00060273,120]
[354393609,1740468812583,-560.94,0.00060273,120]
[354393610,1740468812593,-404.43,0.00060273,7]
[354393611,1740468812605,-1128.12,0.00060273,120]
[354393612,1740468812615,-610.79,0.00060273,120]
[354393613,1740468812626,-630.83,0.00060273,120]
[354393614,1740468812642,-469.69984866,0.00060273,120]
[354393615,1740468812653,-500.0,0.00060273,120]
[354393616,1740468812663,-641.8,0.00060273,120]
[354393617,1740468812675,-500.0,0.00060273,120]
[354393618,1740468812685,-1736.97,0.00060273,120]
[354393619,1740468812696,-500.0,0.00060273,120]
[354393620,1740468812707,-551.92,0.00060273,120]
[354393621,1740468812718,-829.97,0.00060273,120]
[354393622,1740468812728,-1884.67,0.00060273,120]
[354393623,1740468812739,-1959.02,0.00060273,120]
[354393624,1740468812749,-687.65,0.00060273,120]
[354393625,1740468812759,-1049.16,0.00060273,120]
[354393626,1740468812770,-910.65,0.00060273,120]
[354393627,1740468812780,-448.53143935,0.00060273,120]
[354393628,1740468812790,-1220.8,0.00060273,120]
[354393629,1740468812800,-500.0,0.00060273,120]
[354393630,1740468812810,-522.31,0.00060273,120]
[354393631,1740468812820,-1188.98,0.00060273,120]
[354393632,1740468812830,-526.28,0.00060273,120]
[354393633,1740468812840,-1040.34,0.00060273,120]
[354393634,1740468812850,-724.24,0.00060273,120]
[354393635,1740468812859,-1422.51,0.00060273,120]
[354393636,1740468812869,-1615.65,0.00060273,120]
[354393637,1740468812879,-992.42,0.00060273,20]
[354393638,1740468812891,-901.44,0.00060273,120]
[354393639,1740468812901,-816.88,0.00060273,120]
[354393640,1740468812912,-500.0,0.00060273,120]
[354393641,1740468812922,-671.92,0.00060273,120]
[354393642,1740468812932,-955.28,0.00060273,120]
[354393643,1740468812942,-1525.72,0.00060273,120]
[354393644,1740468812952,-1437.76,0.00060273,120]
[354393645,1740468812962,-1768.38,0.00060273,120]
[354393646,1740468812972,-872.14,0.00060273,120]
[354393647,1740468812983,-1132.0,0.00060273,120]
[354393648,1740468812994,-1405.94,0.00060273,120]
[354393649,1740468813004,-784.36429815,0.00060273,120]
[354393650,1740468813015,-745.77,0.00060273,120]
[354393651,1740468813026,-500.0,0.00060273,120]
[354393652,1740468813037,-820.25,0.00060273,120]
[354393653,1740468813048,-778.18,0.00060273,120]
[354393654,1740468813059,-500.0,0.00060273,120]
[354393655,1740468813071,-618.03,0.00060273,120]
[354393656,1740468813081,-538.57,0.00060273,120]
[354393657,1740468813092,-659.87,0.00060273,120]
[354393658,1740468813103,-542.24,0.00060273,120]
[354393659,1740468813118,-1379.17,0.00060273,120]
[354393660,1740468813129,-813.45,0.00060273,120]
[354393661,1740468813143,-1790.29,0.00060273,120]
[354393662,1740468813154,-817.76,0.00060273,120]
[354393663,1740468813166,-1159.57,0.00060273,120]
[354393664,1740468813177,-500.0,0.00060273,120]
[354393665,1740468813190,-500.0,0.00060273,120]
[354393666,1740468813202,-1035.42,0.00060273,120]
[354393667,1740468813212,-1067.5,0.00060273,120]
[354393668,1740468813223,-911.5,0.00060273,120]
[354393669,1740468813233,-782.71,0.00060273,120]
[354393670,1740468813243,-692.81,0.00060273,120]
[354393671,1740468813254,-1417.28,0.00060273,120]
[354393672,1740468813265,-4827.95,0.00060273,120]
[354393673,1740468813277,-907.1,0.00060273,120]
[354393674,1740468813288,-1025.54,0.00060273,120]
[354393675,1740468813299,-972.52,0.00060273,120]
[354393676,1740468813310,-1147.6,0.00060273,120]
[354393677,1740468813321,-954.71,0.00060273,120]
[354393678,1740468813333,-508.53,0.00060273,120]
[354393679,1740468813343,-672.91,0.00060273,120]
[354393680,1740468813354,-927.58,0.00060273,120]
[354393681,1740468813365,-1526.64,0.00060273,120]
[354393682,1740468813378,-248.86642,0.00060273,120]
[354393683,1740468813391,-1242.39,0.00060273,120]
[354393684,1740468813402,-1600.52,0.00060273,120]
[354393685,1740468813413,-871.61,0.00060273,120]
[354393686,1740468813423,-549.43,0.00060273,120]
[354393687,1740468813433,-552.98,0.00060273,120]
[354393688,1740468813444,-1401.97,0.00060273,120]
[354393689,1740468813454,-1245.93,0.00060273,120]
[354393690,1740468813465,-1142.54,0.00060273,120]
[354393691,1740468813475,-1200.36,0.00060273,120]
[354393692,1740468813485,-500.0,0.00060273,120]
[354393693,1740468813495,-504.05,0.00060273,120]
[354393694,1740468813506,-971.46,0.00060273,120]
[354393695,1740468813517,-599.74,0.00060273,120]
[354393696,1740468813527,-515.75,0.00060273,120]
[354393697,1740468813538,-1301.53,0.00060273,120]
[354393698,1740468813549,-500.0,0.00060273,120]
[354393699,1740468813561,-1377.93,0.00060273,120]
[354393700,1740468813571,-623.61,0.00060273,120]
[354393701,1740468813582,-519.39,0.00060273,120]
[354393702,1740468813594,-1303.38,0.00060273,120]
[354393703,1740468813605,-500.0,0.00060273,120]
[354393704,1740468813616,-585.47,0.00060273,120]
[354393705,1740468813627,-1349.4,0.00060273,120]
[354393706,1740468813641,-552.97,0.00060273,120]
[354393707,1740468813652,-741.84,0.00060273,120]
[354393708,1740468813663,-700.58,0.00060273,2]
[354393709,1740468813675,-2351.09,0.00060273,2]
[354393710,1740468813686,-994.98,0.00060273,30]
[354393711,1740468813697,-715.33,0.00060273,120]
[354393712,1740468813708,-1439.89,0.00060273,120]
[354393713,1740468813719,-943.25,0.00060273,120]
[354393714,1740468813730,-657.52,0.00060273,120]
[354393715,1740468813741,-523.79,0.00060273,120]
[354393716,1740468813752,-1664.27,0.00060273,120]
[354393717,1740468813763,-943.64,0.00060273,120]
[354393718,1740468813774,-516.4,0.00060273,120]
[354393719,1740468813997,-712.11,0.00060273,120]
[354393720,1740468814008,-500.0,0.00060273,120]
[354393721,1740468814019,-888.35,0.00060273,120]
[354393722,1740468814030,-500.0,0.00060273,120]
[354393723,1740468814041,-522.22,0.00060273,120]
[354393724,1740468814051,-1032.87,0.00060273,120]
[354393725,1740468814062,-1438.9,0.00060273,120]
[354393726,1740468814072,-570.8,0.00060273,120]
[354393727,1740468814082,-815.66,0.00060273,120]
[354393728,1740468814092,-500.0,0.00060273,120]
[354393729,1740468814102,-1275.45,0.00060273,120]
[354393730,1740468814114,-3980.64,0.00060273,120]
[354393731,1740468814125,-1206.75,0.00060273,120]
[354393732,1740468814137,-500.0,0.00060273,120]
[354393733,1740468814147,-1130.49,0.00060273,120]
[354393734,1740468814159,-1535.83,0.00060273,120]
[354393735,1740468814169,-1768.01,0.00060273,120]
[354393736,1740468814306,-664.86,0.00060273,120]
[354393737,1740468814318,-696.61,0.00060273,120]
[354393738,1740468814328,-1200.87,0.00060273,120]
[354393739,1740468814337,-1522.97,0.00060273,120]
[354393740,1740468814347,-1393.05,0.00060273,120]
[354393741,1740468814357,-1886.6,0.00060273,120]
[354393742,1740468814368,-1184.76,0.00060273,120]
[354393743,1740468814378,-1319.72,0.00060273,120]
[354393744,1740468814390,-986.38,0.00060273,120]
[354393745,1740468814401,-2022.2,0.00060273,120]
[354393746,1740468814412,-1099.29,0.00060273,120]
[354393747,1740468814422,-512.51,0.00060273,120]
[354393748,1740468814433,-517.98,0.00060273,120]
[354393749,1740468814443,-1030.18,0.00060273,120]
[354393750,1740468814454,-1444.43,0.00060273,120]
[354393751,1740468814464,-971.18,0.00060273,120]
[354393752,1740468814474,-1142.3,0.00060273,120]
[354393753,1740468814484,-1194.04,0.00060273,120]
[354393754,1740468814495,-1748.82,0.00060273,120]
[354393755,1740468814504,-679.54,0.00060273,120]
[354393756,1740468814514,-1309.17,0.00060273,120]
[354393757,1740468814524,-500.0,0.00060273,120]
[354393758,1740468814534,-587.74,0.00060273,120]
[354393759,1740468814543,-778.7,0.00060273,120]
[354393760,1740468814552,-730.67,0.00060273,120]
[354393761,1740468814562,-733.26,0.00060273,120]
[354393762,1740468814571,-598.78,0.00060273,120]
[354393763,1740468814580,-1016.76,0.00060273,120]
[354393764,1740468814589,-789.0,0.00060273,120]
[354393765,1740468814599,-343.780273,0.00060273,120]
[354393766,1740468814608,-1145.46,0.00060273,120]
[354393767,1740468814617,-4362.55,0.00060273,120]
[354393768,1740468814627,-631.53,0.00060273,120]
[354393769,1740468814637,-969.91,0.00060273,120]
[354393770,1740468814646,-759.14,0.00060273,120]
[354393771,1740468814656,-3017.39,0.00060273,120]
[354393772,1740468814666,-2220.86,0.00060273,120]
[354393773,1740468814674,-1553.03,0.00060273,120]
[354393774,1740468814683,-318.751745,0.00060273,120]
[354393775,1740468814693,-722.9,0.00060273,120]
[354393776,1740468814703,-910.26,0.00060273,120]
[354393777,1740468814712,-856.37,0.00060273,120]
[354393778,1740468814721,-887.73,0.00060273,120]
[354393779,1740468814730,-429.93863977,0.00060273,120]
[354393780,1740468814739,-1830.19,0.00060273,120]
[354393781,1740468814748,-1715.31,0.00060273,120]
[354393782,1740468814757,-686.54,0.00060273,120]
[354393783,1740468814767,-2424.1,0.00060273,120]
[354393784,1740468814776,-1521.55,0.00060273,120]
[354393785,1740468814785,-2919.48,0.00060273,120]
[354393786,1740468814795,-823.47,0.00060273,120]
[354393787,1740468814804,-1738.48,0.00060273,120]
[354393788,1740468814814,-915.34,0.00060273,120]
[354393789,1740468814823,-2711.99,0.00060273,120]
[354393790,1740468814832,-576.99,0.00060273,120]
[354393791,1740468814841,-2110.84,0.00060273,120]
[354393792,1740468814850,-2315.41,0.00060273,120]
[354393793,1740468814859,-3875.43,0.00060273,7]
[354393794,1740468814868,-637.74,0.00060273,120]
[354393795,1740468814878,-1035.71,0.00060273,120]
[354393796,1740468814888,-750.25,0.00060273,120]
[354393797,1740468814897,-3264.88,0.00060273,120]
[354393798,1740468814907,-2938.93,0.00060273,120]
[354393799,1740468814916,-1210.86,0.00060273,120]
[354393800,1740468814925,-534.95,0.00060273,120]
[354393801,1740468814935,-2458.44,0.00060273,120]
[354393802,1740468814944,-703.65,0.00060273,120]
[354393803,1740468814953,-1556.62,0.00060273,120]
[354393804,1740468814962,-313.45298041,0.00060273,120]
[354393805,1740468814971,-2761.69,0.00060273,120]
[354393806,1740468814980,-585.51,0.00060273,120]
[354393807,1740468814989,-2649.21,0.00060273,120]
[354393808,1740468814998,-1981.89,0.00060273,120]
[354393809,1740468815007,-689.83,0.00060273,120]
[354393810,1740468815016,-2553.02,0.00060273,120]
[354393811,1740468815025,-1493.71,0.00060273,120]
[354393812,1740468815034,-1352.07,0.00060273,120]
[354393813,1740468815043,-2909.1,0.00060273,120]
[354393814,1740468815052,-1667.75,0.00060273,120]
[354393815,1740468815061,-3211.4,0.00060273,120]
[354393816,1740468815070,-1519.71,0.00060273,120]
[354393817,1740468815079,-4349.64,0.00060273,120]
[354393818,1740468815088,-752.34,0.00060273,120]
[354393819,1740468815097,-864.91,0.00060273,120]
[354393820,1740468815106,-1290.66,0.00060273,120]
[354393821,1740468815118,-910.81,0.00060273,5]
[354393822,1740468815127,-2901.27,0.00060273,120]
[354393823,1740468815137,-1857.67,0.00060273,120]
[354393824,1740468815146,-500.0,0.00060273,120]
[354393825,1740468815156,-2986.93,0.00060273,120]
[354393826,1740468815167,-2864.49,0.00060273,120]
[354393827,1740468815177,-2305.88,0.00060273,120]
[354393828,1740468815187,-2121.17,0.00060273,120]
[354393829,1740468815196,-538.64,0.00060273,120]
[354393830,1740468815206,-1452.1,0.00060273,120]
[354393831,1740468815215,-1752.42,0.00060273,120]
[354393832,1740468815225,-1822.96,0.00060273,120]
[354393833,1740468815235,-2477.45,0.00060273,120]
[354393834,1740468815245,-1851.24,0.00060273,120]
[354393835,1740468815254,-607.87,0.00060273,120]
[354393836,1740468815263,-2265.65,0.00060273,120]
[354393837,1740468815273,-3192.11,0.00060273,120]
[354393838,1740468815282,-1530.35,0.00060273,120]
[354393839,1740468815292,-3707.86,0.00060273,120]
[354393840,1740468815302,-1400.72,0.00060273,120]
[354393841,1740468815311,-813.46,0.00060273,120]
[354393842,1740468815320,-1028.29,0.00060273,120]
[354393843,1740468815330,-1470.7,0.00060273,120]
[354393844,1740468815339,-2337.12,0.00060273,120]
[354393845,1740468815348,-3975.46,0.00060273,120]
[354393846,1740468815358,-3333.6,0.00060273,120]
[354393847,1740468815367,-5873.49,0.00060273,120]
[354393848,1740468815377,-1036.75,0.00060273,120]
[354393849,1740468815389,-640.5,0.00060273,120]
[354393850,1740468815399,-562.09,0.00060273,120]
[354393851,1740468815408,-2745.61,0.00060273,120]
[354393852,1740468815418,-707.46,0.00060273,120]
[354393853,1740468815428,-4540.04,0.00060273,120]
[354393854,1740468815438,-1113.18,0.00060273,120]
[354393855,1740468815451,-613.18,0.00060273,120]
[354393856,1740468815460,-3052.04,0.00060273,120]
[354393857,1740468815470,-2703.16,0.00060273,120]
[354393858,1740468815481,-522.41,0.00060273,120]
[354393859,1740468815490,-551.64,0.00060273,120]
[354393860,1740468815500,-1552.51,0.00060273,120]
[354393861,1740468815510,-2971.45,0.00060273,90]
[354393862,1740468815520,-1701.44,0.00060273,120]
[354393863,1740468815530,-553.8,0.00060273,120]
[354393864,1740468815539,-1833.0,0.00060273,120]
[354393865,1740468815549,-2581.17,0.00060273,120]
[354393866,1740468815558,-522.17,0.00060273,120]
[354393867,1740468815568,-500.0,0.00060273,120]
[354393868,1740468815577,-3435.08,0.00060273,120]
[354393869,1740468815587,-857.98,0.00060273,120]
[354393870,1740468815597,-3140.0,0.00060273,120]
[354393871,1740468815606,-3227.53,0.00060273,120]
[354393872,1740468815617,-504.66960899,0.00060273,120]
[354393873,1740468815626,-775.19,0.00060273,120]
[354393874,1740468815637,-500.0,0.00060273,120]
[354393875,1740468815648,-872.89,0.00060273,120]
[354393876,1740468815657,-2538.08,0.00060273,120]
[354393877,1740468815667,-2940.18,0.00060273,120]
[354393878,1740468815677,-3583.88,0.00060273,120]
[354393879,1740468815686,-2559.65,0.00060273,120]
[354393880,1740468815695,-1118.81,0.00060273,120]
[354393881,1740468815705,-688.16,0.00060273,120]
[354393882,1740468815714,-3329.23,0.00060273,120]
[354393883,1740468815724,-1907.44,0.00060273,120]
[354393884,1740468815733,-3487.12,0.00060273,120]
[354393885,1740468815743,-568.38,0.00060273,120]
[354393886,1740468815753,-2138.38,0.00060273,120]
[354393887,1740468815763,-1469.89,0.00060273,120]
[354393888,1740468815772,-880.12,0.00060273,120]
[354393889,1740468815783,-1941.03,0.00060273,120]
[354393890,1740468815792,-998.34,0.00060273,120]
[354393891,1740468815802,-1969.46,0.00060273,120]
[354393892,1740468815813,-2020.04,0.00060273,120]
[354393893,1740468815822,-1704.77,0.00060273,120]
[354393894,1740468815833,-866.78565246,0.00060273,120]
[354393895,1740468815842,-1814.1,0.00060273,120]
[354393896,1740468815852,-3162.2,0.00060273,120]
[354393897,1740468815862,-561.29,0.00060273,120]
[354393898,1740468815871,-4214.34,0.00060273,120]
[354393899,1740468815881,-1107.87,0.00060273,120]
[354393900,1740468815894,-1793.36,0.00060273,120]
[354393901,1740468815904,-1453.67,0.00060273,30]
[354393902,1740468815914,-558.43,0.00060273,120]
[354393903,1740468815923,-1291.79,0.00060273,120]
[354393904,1740468815933,-2203.33,0.00060273,120]
[354393905,1740468815943,-2186.37,0.00060273,120]
[354393906,1740468815953,-2099.71,0.00060273,120]
[354393907,1740468815962,-1541.65,0.00060273,120]
[354393908,1740468815972,-2864.64,0.00060273,120]
[354393909,1740468815981,-1803.36,0.00060273,120]
[354393910,1740468815990,-1506.59,0.00060273,120]
[354393911,1740468816000,-1568.57,0.00060273,120]
[354393912,1740468816009,-980.59,0.00060273,120]
[354393913,1740468816019,-1792.49,0.00060273,120]
[354393914,1740468816028,-1620.72,0.00060273,120]
[354393915,1740468816037,-659.49,0.00060273,120]
[354393916,1740468816046,-645.57,0.00060273,120]
[354393917,1740468816055,-150.979023,0.00060273,120]
[354393918,1740468816064,-3340.49,0.00060273,120]
[354393919,1740468816073,-849.91,0.00060273,120]
[354393920,1740468816082,-668.51,0.00060273,120]
[354393921,1740468816091,-680.52,0.00060273,120]
[354393922,1740468816101,-1680.11,0.00060273,120]
[354393923,1740468816111,-2006.24,0.00060273,120]
[354393924,1740468816123,-3071.21,0.00060274,120]
[354393925,1740468816132,-563.24,0.00060547,120]
[354393926,1740468816144,-580.45,0.00060547,120]
[354393927,1740468816153,-167.182594,0.00060547,120]
[354393928,1740468816164,-406.014874,0.00060547,120]
[354393929,1740468816173,-166.734294,0.00060547,120]
[354393930,1740468816183,-554.357489,0.00060547,120]
[354393931,1740468816192,-377.0008903,0.00060547,120]
[354393932,1740468816202,-521.68,0.00060547,120]
[354393933,1740468816211,-699.56,0.00060547,120]
[354393934,1740468816221,-500.0,0.00060547,120]
[354393935,1740468816230,-687.3,0.00060547,120]
[354393936,1740468816240,-500.0,0.00060547,120]
[354393937,1740468816250,-1291.42,0.00060547,120]
[354393938,1740468816260,-850.45,0.00060547,120]
[354393939,1740468816270,-836.92,0.00060547,120]
[354393940,1740468816280,-925.53,0.00060547,120]
[354393941,1740468816290,-525.48,0.00060547,120]
[354393942,1740468816300,-1017.7,0.00060547,120]
[354393943,1740468816309,-620.4,0.00060547,120]
[354393944,1740468816319,-637.38,0.00060547,120]
[354393945,1740468816329,-822.2,0.00060547,120]
[354393946,1740468816339,-543.16,0.00060547,120]
[354393947,1740468816349,-1571.07,0.00060547,120]
[354393948,1740468816359,-848.24,0.00060547,120]
[354393949,1740468816369,-943.15,0.00060547,120]
[354393950,1740468816379,-1168.63,0.00060547,120]
[354393951,1740468816390,-500.0,0.00060547,120]
[354393952,1740468816399,-517.51,0.00060547,120]
[354393953,1740468816410,-951.32,0.00060547,120]
[354393954,1740468816420,-777.26,0.00060547,120]
[354393955,1740468816431,-560.94,0.00060547,120]
[354393956,1740468816441,-404.43,0.00060547,7]
[354393957,1740468816452,-1128.12,0.00060547,120]
[354393958,1740468816462,-610.79,0.00060547,120]
[354393959,1740468816473,-630.83,0.00060547,120]
[354393960,1740468816483,-500.0,0.00060547,120]
[354393961,1740468816493,-641.8,0.00060547,120]
[354393962,1740468816503,-500.0,0.00060547,120]
[354393963,1740468816513,-1736.97,0.00060547,120]
[354393964,1740468816523,-275.62786327,0.00060547,120]
[354393965,1740468816532,-551.92,0.00060547,120]
[354393966,1740468816542,-829.97,0.00060547,120]
[354393967,1740468816552,-1884.67,0.00060547,120]
[354393968,1740468816561,-1959.02,0.00060547,120]
[354393969,1740468816571,-687.65,0.00060547,120]
[354393970,1740468816581,-1049.16,0.00060547,120]
[354393971,1740468816590,-910.65,0.00060547,120]
[354393972,1740468816600,-1220.8,0.00060547,120]
[354393973,1740468816609,-500.0,0.00060547,120]
[354393974,1740468816619,-522.31,0.00060547,120]
[354393975,1740468816628,-1188.98,0.00060547,120]
[354393976,1740468816639,-526.28,0.00060547,120]
[354393977,1740468816648,-1040.34,0.00060547,120]
[354393978,1740468816658,-724.24,0.00060547,120]
[354393979,1740468816668,-1422.51,0.00060547,120]
[354393980,1740468816676,-1615.65,0.00060547,120]
[354393981,1740468816686,-992.42,0.00060547,20]
[354393982,1740468816695,-901.44,0.00060547,120]
[354393983,1740468816704,-816.88,0.00060547,120]
[354393984,1740468816713,-500.0,0.00060547,120]
[354393985,1740468816722,-671.92,0.00060547,120]
[354393986,1740468816731,-955.28,0.00060547,120]
[354393987,1740468816740,-1525.72,0.00060547,120]
[354393988,1740468816749,-1437.76,0.00060547,120]
[354393989,1740468816759,-1768.38,0.00060547,120]
[354393990,1740468816768,-872.14,0.00060547,120]
[354393991,1740468816778,-1132.0,0.00060547,120]
[354393992,1740468816787,-1405.94,0.00060547,120]
[354393993,1740468816797,-745.77,0.00060547,120]
[354393994,1740468816807,-500.0,0.00060547,120]
[354393995,1740468816816,-820.25,0.00060547,120]
[354393996,1740468816826,-778.18,0.00060547,120]
[354393997,1740468816835,-500.0,0.00060547,120]
[354393998,1740468816845,-618.03,0.00060547,120]
[354393999,1740468816854,-538.57,0.00060547,120]
[354394000,1740468816864,-659.87,0.00060547,120]
[354394001,1740468816874,-542.24,0.00060547,120]
[354394002,1740468816883,-1379.17,0.00060547,120]
[354394003,1740468816895,-813.45,0.00060547,120]
[354394004,1740468816904,-1790.29,0.00060547,120]
[354394005,1740468816914,-817.76,0.00060547,120]
[354394006,1740468816923,-1159.57,0.00060547,120]
[354394007,1740468816932,-216.68,0.00060547,120]
[354394008,1740468816942,-465.53272724,0.00060547,120]
[354394009,1740468816952,-1035.42,0.00060547,120]
[354394010,1740468816961,-1067.5,0.00060547,120]
[354394011,1740468816971,-911.5,0.00060547,120]
[354394012,1740468816980,-782.71,0.00060547,120]
[354394013,1740468816989,-692.81,0.00060547,120]
[354394014,1740468816999,-1417.28,0.00060547,120]
[354394015,1740468817008,-4827.95,0.00060547,120]
[354394016,1740468817018,-907.1,0.00060547,120]
[354394017,1740468817028,-1025.54,0.00060547,120]
[354394018,1740468817038,-972.52,0.00060547,120]
[354394019,1740468817048,-1147.6,0.00060547,120]
[354394020,1740468817057,-954.71,0.00060547,120]
[354394021,1740468817066,-508.53,0.00060547,120]
[354394022,1740468817076,-672.91,0.00060547,120]
[354394023,1740468817085,-927.58,0.00060547,120]
[354394024,1740468817094,-1526.64,0.00060547,120]
[354394025,1740468817104,-1242.39,0.00060547,120]
[354394026,1740468817115,-1600.52,0.00060547,120]
[354394027,1740468817125,-871.61,0.00060547,120]
[354394028,1740468817135,-549.43,0.00060547,120]
[354394029,1740468817145,-552.98,0.00060547,120]
[354394030,1740468817155,-1401.97,0.00060547,120]
[354394031,1740468817167,-1245.93,0.00060547,120]
[354394032,1740468817176,-1142.54,0.00060547,120]
[354394033,1740468817185,-1200.36,0.00060547,120]
[354394034,1740468817194,-512.79600971,0.00060547,120]
[354394035,1740468817204,-504.05,0.00060547,120]
[354394036,1740468817214,-971.46,0.00060547,120]
[354394037,1740468817223,-599.74,0.00060547,120]
[354394038,1740468817233,-515.75,0.00060547,120]
[354394039,1740468817243,-1301.53,0.00060547,120]
[354394040,1740468817253,-500.0,0.00060547,120]
[354394041,1740468817262,-1377.93,0.00060547,120]
[354394042,1740468817271,-623.61,0.00060547,120]
[354394043,1740468817280,-519.39,0.00060547,120]
[354394044,1740468817290,-1303.38,0.00060547,120]
[354394045,1740468817300,-583.24292641,0.00060547,120]
[354394046,1740468817310,-585.47,0.00060547,120]
[354394047,1740468817319,-1349.4,0.00060547,120]
[354394048,1740468817328,-552.97,0.00060547,120]
[354394049,1740468817337,-741.84,0.00060547,120]
[354394050,1740468817348,-700.58,0.00060547,2]
[354394051,1740468817358,-2351.09,0.00060547,2]
[354394052,1740468817367,-994.98,0.00060547,30]
[354394053,1740468817377,-715.33,0.00060547,120]
[354394054,1740468817387,-1439.89,0.00060547,120]
[354394055,1740468817397,-943.25,0.00060547,120]
[354394056,1740468817406,-657.52,0.00060547,120]
[354394057,1740468817417,-523.79,0.00060547,120]
[354394058,1740468817426,-1664.27,0.00060547,120]
[354394059,1740468817447,-943.64,0.00060547,120]
[354394060,1740468817458,-516.4,0.00060547,120]
[354394061,1740468817468,-712.11,0.00060547,120]
[354394062,1740468817477,-306.27420741,0.00060547,120]
[354394063,1740468817488,-888.35,0.00060547,120]
[354394064,1740468817498,-500.0,0.00060547,120]
[354394065,1740468817507,-522.22,0.00060547,120]
[354394066,1740468817516,-1032.87,0.00060547,120]
[354394067,1740468817526,-1438.9,0.00060547,120]
[354394068,1740468817536,-570.8,0.00060547,120]
[354394069,1740468817546,-815.66,0.00060547,120]
[354394070,1740468817556,-500.0,0.00060547,120]
[354394071,1740468817565,-1275.45,0.00060547,120]
[354394072,1740468817575,-3980.64,0.00060547,120]
[354394073,1740468817586,-1206.75,0.00060547,120]
[354394074,1740468817596,-500.0,0.00060547,120]
[354394075,1740468817607,-1130.49,0.00060547,120]
[354394076,1740468817618,-1535.83,0.00060547,120]
[354394077,1740468817629,-1768.01,0.00060547,120]
[354394078,1740468817642,-664.86,0.00060547,120]
[354394079,1740468817654,-696.61,0.00060547,120]
[354394080,1740468817664,-1200.87,0.00060547,120]
[354394081,1740468817675,-1522.97,0.00060547,120]
[354394082,1740468817685,-1393.05,0.00060547,120]
[354394083,1740468817696,-1886.6,0.00060547,120]
[354394084,1740468817707,-1184.76,0.00060547,120]
[354394085,1740468817717,-1319.72,0.00060547,120]
[354394086,1740468817727,-986.38,0.00060547,120]
[354394087,1740468817738,-2022.2,0.00060547,120]
[354394088,1740468817749,-1099.29,0.00060547,120]
[354394089,1740468817759,-512.51,0.00060547,120]
[354394090,1740468817769,-517.98,0.00060547,120]
[354394091,1740468817779,-1030.18,0.00060547,120]
[354394092,1740468817790,-1444.43,0.00060547,120]
[354394093,1740468817800,-971.18,0.00060547,120]
[354394094,1740468817810,-1142.3,0.00060547,120]
[354394095,1740468817820,-1194.04,0.00060547,120]
[354394096,1740468817830,-1748.82,0.00060547,120]
[354394097,1740468817840,-679.54,0.00060547,120]
[354394098,1740468817850,-1309.17,0.00060547,120]
[354394099,1740468817860,-500.0,0.00060547,120]
[354394100,1740468817870,-587.74,0.00060547,120]
[354394101,1740468817880,-778.7,0.00060547,120]
[354394102,1740468817892,-730.67,0.00060547,120]
[354394103,1740468817902,-733.26,0.00060547,120]
[354394104,1740468817911,-1016.76,0.00060547,120]
[354394105,1740468817920,-598.78,0.00060547,120]
[354394106,1740468817929,-789.0,0.00060547,120]
[354394107,1740468817940,-343.780273,0.00060547,120]